bitfinex/quotes_ETHUSD_20220103
["timestamp","ask_amount","ask_price","bid_price","bid_amount"]
[1641224157525,1.84421696,3803.9,3803.7,0.00454739]
[1641224158127,0.65724,3803.8,3803.5,0.00568424]
[1641224158574,1.31448,3803.8,3803.5,0.00568424]
[1641224158772,1.9717558,3803.8,3803.5,0.00568424]
[1641224158974,1.31448,3803.8,3803.5,0.00568424]
[1641224160378,0.6572998,3803.7,3803.5,0.00568424]
[1641224165125,0.6572998,3803.7,3803.5,1.78731103]
[1641224165423,0.6572998,3803.7,3803.5,0.00568424]
[1641224165424,0.66084947,3803.7,3803.5,0.00568424]
[1641224165623,0.00354967,3803.7,3803.6,0.00511581]
[1641224165823,0.00354967,3803.7,3803.4,1.78384117]
[1641224165824,0.00354967,3803.7,3803.5,0.00568424]
[1641224167482,0.30354967,3803.7,3803.5,0.00568424]
[1641224168285,0.00354967,3803.7,3803.5,0.00568424]
[1641224168486,0.30354967,3803.7,3803.5,0.00568424]
[1641224168886,3.53992297,3803.8,3803.5,0.00568424]
[1641224169086,2.27218,3803.7,3803.5,0.00568424]
[1641224169285,1.97218,3803.7,3803.5,0.00568424]
[1641224169485,0.3,3803.6,3803.5,0.00568424]
[1641224170121,1.97218,3803.7,3803.5,0.00568424]
[1641224170526,1.31448,3803.8,3803.5,0.00568424]
[1641224170929,1.30448,3803.8,3803.5,0.00568424]
[1641224171126,1.30448,3803.8,3803.6,0.65722]
[1641224171530,1.30448,3803.8,3803.7,0.00454739]
[1641224171728,1.30448,3803.8,3803.7,1.12346573]
[1641224174277,1.30448,3803.8,3803.7,1.54657939]
[1641224174278,0.65724,3803.8,3803.7,1.54657939]
[1641224174477,1.31431,3804.2,3803.7,1.54657939]
[1641224174478,0.65714,3804.0,3803.7,1.54657939]
[1641224174679,0.65714,3804.0,3803.8,0.65712]
[1641224174878,0.65712,3804.1,3803.9,15.37]
[1641224175081,2.62894,3805.4,3804.0,1.0]
[1641224175282,2.45986478,3805.9,3804.0,1.0]
[1641224175283,3.11795897,3805.9,3804.0,1.379]
[1641224175477,3.11795897,3805.9,3804.1,15.3722737]
[1641224175478,0.00284211,3805.0,3804.1,15.3722737]
[1641224175677,0.00284211,3805.0,3804.2,1.379]
[1641224175878,0.00227369,3804.9,3804.6,0.65693]
[1641224176081,1.18808879,3804.9,3804.6,0.65693]
[1641224176278,0.00170527,3804.8,3804.6,0.65693]
[1641224176578,0.00113684,3804.7,3804.3,0.00113685]
[1641224177419,1.31526684,3804.7,3804.3,0.00113685]
[1641224177819,1.31415,3804.6,3804.3,0.42425051]
[1641224178825,1.31415,3804.6,3804.3,0.00113685]
[1641224179727,1.9713118,3804.5,3804.3,0.00113685]
[1641224181187,2.6284718,3804.5,3804.2,0.00170527]
[1641224181781,2.9284718,3804.5,3804.2,0.00170527]
[1641224181985,1.9572154,3804.4,3804.0,0.42311366]
[1641224182284,1.97192,3804.2,3804.0,0.42311366]
[1641224182683,0.3,3804.1,3804.0,0.42311366]
[1641224182983,0.657256,3803.9,3803.5,0.42311366]
[1641224183183,1.314516,3803.9,3803.5,0.42311366]
[1641224183381,0.65726,3803.8,3803.6,0.00341054]
[1641224183984,1.3145276,3803.8,3803.5,0.00397897]
[1641224184186,2.6290376,3803.8,3803.5,0.00397897]
[1641224184382,3.20376864,3803.7,3803.5,2.44283576]
[1641224185242,2.54650864,3803.6,3803.5,2.44283576]
[1641224185843,0.65726,3803.7,3803.5,2.44283576]
[1641224187748,0.65726,3803.7,3803.5,0.66120897]
[1641224188146,0.65716,3803.9,3803.5,0.66120897]
[1641224189485,2.58723846,3803.8,3803.7,1.78141046]
[1641224189785,2.58723846,3803.8,3803.7,2.44143258]
[1641224190690,2.58723846,3803.8,3803.7,0.66002212]
[1641224191090,2.58723846,3803.8,3803.7,2.44143258]
[1641224192441,0.65716,3803.9,3803.7,0.66002212]
[1641224192850,0.65716,3803.9,3803.8,0.0022737]
[1641224193242,0.65716,3803.9,3803.8,1.78311732]
[1641224193946,3.24980905,3803.9,3803.8,1.78311732]
[1641224195351,0.65716,3803.9,3803.8,1.78311732]
[1641224195752,0.65716,3803.9,3803.8,0.0022737]
[1641224199187,0.65716,3803.9,3803.8,0.37750061]
[1641224201537,3.23450776,3803.9,3803.8,0.37750061]
[1641224202740,0.65716,3803.9,3803.8,0.37750061]
[1641224204688,0.6643104,3803.9,3803.8,0.37750061]
[1641224208448,0.0071504,3803.9,3803.8,3.52750061]
[1641224208650,0.0071504,3803.9,3803.8,4.52750061]
[1641224209252,0.0071504,3803.9,3803.8,3.52750061]
[1641224209451,0.0071504,3803.9,3803.8,0.37750061]
[1641224211493,0.0071504,3803.9,3803.8,2.15834423]
[1641224211494,2.6088667,3803.9,3803.8,2.15834423]
[1641224213394,0.0071504,3803.9,3803.8,15.74750061]
[1641224214197,0.0071504,3803.9,3803.8,17.52764144]
[1641224214596,0.0071504,3803.9,3803.8,17.53071665]
[1641224214825,0.0071504,3803.9,3803.8,15.75057582]
[1641224216032,0.0071504,3803.9,3803.8,17.53071665]
[1641224217534,0.0071504,3803.9,3803.8,18.53071665]
[1641224218334,0.0071504,3803.9,3803.8,17.53071665]
[1641224219184,0.0071504,3803.9,3803.8,2.16071665]
[1641224219387,0.0071504,3803.9,3803.8,17.53071665]
[1641224221787,0.0071504,3803.9,3803.8,2.16071665]
[1641224222189,2.60295664,3803.9,3803.8,0.38057582]
[1641224222754,3.09155664,3803.9,3803.8,0.37830212]
[1641224222949,2.98195664,3803.9,3803.8,0.37830212]
[1641224224552,5.34769603,3803.9,3803.8,0.37830212]
[1641224224752,2.98195664,3803.9,3803.8,0.37830212]
[1641224224954,2.60295664,3803.9,3803.8,0.37830212]
[1641224225653,4.93580224,3803.9,3803.8,0.37830212]
[1641224225854,2.60295664,3803.9,3803.8,0.37830212]
[1641224227109,4.93360757,3803.9,3803.8,0.37830212]
[1641224227310,2.60295664,3803.9,3803.8,0.37830212]
[1641224228512,3.89582435,3803.9,3803.8,0.37830212]
[1641224233134,6.2058575,3803.9,3803.8,0.37830212]
[1641224233337,3.89582435,3803.9,3803.8,0.37830212]
[1641224234185,6.22343598,3803.9,3803.8,0.37522691]
[1641224234388,6.88079598,3803.9,3803.8,0.37522691]
[1641224235587,6.88079598,3803.9,3803.2,1.78014083]
[1641224235588,0.65738,3803.6,3803.2,1.78014083]
[1641224235789,1.08063362,3803.3,3803.2,1.78014083]
[1641224236588,1.31476,3803.7,3803.1,1.28014083]
[1641224236990,0.65738,3803.3,3803.1,1.28014083]
[1641224237627,0.65738,3803.3,3803.2,0.37522691]
[1641224240431,3.28509425,3803.3,3803.2,0.37522691]
[1641224247940,3.28509425,3803.3,3803.2,9.67522691]
[1641224248140,2.62771425,3803.3,3803.2,10.67522691]
[1641224248339,2.62771425,3803.3,3803.2,10.68765555]
[1641224248589,0.65718,3803.6,3803.2,10.68765555]
[1641224249001,0.0071504,3803.9,3803.3,2.95841042]
[1641224249195,0.65716,3803.8,3803.3,2.95841042]
[1641224249392,0.65716,3803.8,3803.4,0.00454739]
[1641224249594,0.0071504,3803.9,3803.4,0.00454739]
[1641224250196,3.28468298,3803.7,3803.5,0.65719]
[1641224250697,3.28468298,3803.7,3803.6,6.05341054]
[1641224250896,0.65719,3803.7,3803.6,6.05341054]
[1641224251095,0.65719,3803.7,3803.6,8.18907014]
[1641224253134,0.65719,3803.7,3803.6,6.42863745]
[1641224257485,0.45719,3803.7,3803.6,0.37863745]
[1641224258987,0.45719,3803.7,3803.6,2.12847371]
[1641224259189,0.6643204,3803.9,3803.7,0.65716]
[1641224259590,0.6643204,3803.9,3803.8,5.1522737]
[1641224259838,0.6643204,3803.9,3803.8,0.0022737]
[1641224260541,0.6643204,3803.9,3803.8,0.37750061]
[1641224261143,3.22636936,3803.9,3803.8,0.37750061]
[1641224262142,0.6643204,3803.9,3803.8,0.37750061]
[1641224262949,3.22636936,3803.9,3803.8,0.37750061]
[1641224263145,0.6643204,3803.9,3803.8,0.37750061]
[1641224263593,3.22636936,3803.9,3803.8,0.37750061]
[1641224263798,2.56919936,3803.9,3803.8,23.51122737]
[1641224263997,2.56919936,3803.9,3803.8,22.24680061]
[1641224264200,2.56919936,3803.9,3803.8,23.24680061]
[1641224264601,2.56919936,3803.9,3803.8,23.54680061]
[1641224264799,0.06542708,3804.0,3803.9,9.0]
[1641224265002,2.708e-05,3804.0,3803.9,24.749]
[1641224265203,2.97797726,3804.9,3804.1,15.37]
[1641224265401,2.97797726,3804.9,3804.2,2.80614245]
[1641224265601,0.00341054,3804.8,3804.3,17.34058]
[1641224265800,0.00341054,3804.8,3804.4,0.379]
[1641224266002,0.65687,3805.7,3805.2,1.17977524]
[1641224266302,0.66198581,3805.7,3805.2,1.17977524]
[1641224267753,0.66198581,3805.7,3805.4,0.6569]
[1641224270962,0.66198581,3805.7,3805.4,0.63749242]
[1641224275156,1.31893581,3805.7,3805.2,1.18297686]
[1641224275360,0.66206581,3805.7,3805.2,1.18297686]
[1641224275560,0.66206581,3805.7,3805.2,0.00320162]
[1641224275561,0.65695,3805.5,3805.2,0.00320162]
[1641224275961,0.00341054,3805.4,3805.2,0.00320162]
[1641224276363,0.00284211,3805.3,3805.2,0.00320162]
[1641224278590,0.00284211,3805.3,3805.2,0.00468086]
[1641224285853,0.00284211,3805.3,3805.2,0.6618569]
[1641224289601,2.29886109,3805.3,3805.2,0.6618569]
[1641224292857,2.30240917,3805.3,3805.2,0.6618569]
[1641224303517,3.30240917,3805.3,3805.2,0.6618569]
[1641224303715,2.30240917,3805.3,3805.2,0.6618569]
[1641224304616,2.30240917,3805.3,3805.2,0.00468086]
[1641224306656,2.29956706,3805.3,3805.2,0.00468086]
[1641224307955,2.29956706,3805.3,3805.2,0.65377889]
[1641224308600,2.29956706,3805.3,3805.2,2.9067268]
[1641224309204,2.29956706,3805.3,3805.2,9.0067268]
[1641224309405,2.29956706,3805.3,3805.2,24.3767268]
[1641224310204,0.00354808,3805.3,3805.2,3.9067268]
[1641224310405,0.00354808,3805.3,3805.2,19.2767268]
[1641224310608,0.00354808,3805.3,3805.2,3.9067268]
[1641224311606,0.00354808,3805.3,3805.2,1.65377889]
[1641224311807,0.00354808,3805.3,3805.2,0.65377889]
[1641224313461,2.29854129,3805.3,3805.2,0.65377889]
[1641224330761,0.00354808,3805.3,3805.2,0.65377889]
[1641224333406,2.21495194,3805.3,3805.2,0.65377889]
[1641224354011,4.83337225,3805.3,3805.2,0.65377889]
[1641224354210,7.76237225,3805.3,3805.2,0.64909803]
[1641224354411,5.74395194,3805.3,3805.2,0.64909803]
[1641224355611,7.05595194,3805.3,3805.2,0.64909803]
[1641224355813,1.31428,3805.0,3804.7,0.64909803]
[1641224356010,0.3,3804.9,3804.7,0.64909803]
[1641224357210,3.16854386,3804.9,3804.7,0.64909803]
[1641224357473,3.82568306,3804.9,3804.7,0.64909803]
[1641224357872,2.21140386,3804.8,3804.3,0.64909803]
[1641224358074,2.51140386,3804.8,3804.3,0.64909803]
[1641224358272,1.31426,3804.6,3804.4,0.0022737]
[1641224358476,1.61426,3804.6,3804.4,0.0022737]
[1641224358679,1.31426,3804.6,3804.4,0.0022737]
[1641224358879,0.65713,3804.6,3804.4,0.0022737]
[1641224360280,0.65713,3804.6,3804.4,0.65137173]
[1641224360481,0.65713,3804.6,3804.4,1.30847173]
[1641224360680,0.65713,3804.6,3804.5,15.37170527]
[1641224361112,0.65713,3804.6,3804.5,0.00170527]
[1641224362107,0.65713,3804.6,3804.5,0.6508033]
[1641224364215,0.66067876,3804.6,3804.5,0.6508033]
[1641224364862,0.61067876,3804.6,3804.5,0.6508033]
[1641224368923,0.60318573,3804.6,3804.5,0.6508033]
[1641224369119,0.60318573,3804.6,3804.5,16.0208033]
[1641224370020,0.60318573,3804.6,3804.5,17.0208033]
[1641224375564,0.60318573,3804.6,3804.5,18.76508474]
[1641224377027,0.60318573,3804.6,3804.5,17.0208033]
[1641224380188,0.00354876,3804.6,3804.5,17.0208033]
[1641224380792,0.00354876,3804.6,3804.5,17.3998033]
[1641224384020,0.00354876,3804.6,3804.5,17.4041333]
[1641224386721,0.00354876,3804.6,3804.5,22.1471333]
[1641224387122,0.65679,3805.3,3804.5,22.1471333]
[1641224387381,0.65679,3805.3,3804.9,0.4597484]
[1641224387585,0.65679,3805.3,3805.0,0.379]
[1641224387884,0.65679,3805.3,3805.1,15.37]
[1641224388083,0.65679,3805.3,3805.2,16.749]
[1641224388283,0.65679,3805.3,3805.2,15.749]
[1641224388483,0.65963211,3805.3,3805.2,16.749]
[1641224388687,0.65963211,3805.3,3805.2,1.379]
[1641224388889,0.65963211,3805.3,3805.2,2.69320479]
[1641224389087,0.65963211,3805.3,3805.2,4.34230282]
[1641224389488,0.65963211,3805.3,3805.2,1.02809803]
[1641224389888,0.65963211,3805.3,3805.2,2.02809803]
[1641224390489,0.65963211,3805.3,3805.2,1.02809803]
[1641224395169,2.83872668,3805.3,3805.2,1.02809803]
[1641224395370,2.83872668,3805.3,3805.2,0.64909803]
[1641224395570,3.13872668,3805.3,3805.2,0.64909803]
[1641224396369,3.13872668,3805.3,3805.1,0.64909803]
[1641224396770,0.00227369,3805.2,3805.1,0.64909803]
[1641224396970,2.18136826,3805.2,3805.1,0.64909803]
[1641224397771,0.00227369,3805.2,3805.1,0.64909803]
[1641224399226,0.00227369,3805.2,3805.1,16.01909803]
[1641224399624,0.00227369,3805.2,3805.1,17.01909803]
[1641224399827,2.18135825,3805.2,3805.1,17.01909803]
[1641224400624,0.00227369,3805.2,3805.1,17.01909803]
[1641224401125,0.00227369,3805.2,3805.1,1.64909803]
[1641224401326,0.00227369,3805.2,3805.1,0.64909803]
[1641224401929,0.30227369,3805.2,3805.1,0.64909803]
[1641224402868,2.48142983,3805.2,3805.1,0.64909803]
[1641224403465,2.48142983,3805.2,3804.7,1.69607586]
[1641224403671,2.48142983,3805.2,3804.3,3.13277586]
[1641224403672,1.31414,3805.0,3804.3,3.13277586]
[1641224403870,1.31414,3805.0,3804.3,2.07507586]
[1641224403871,1.35532655,3804.8,3804.3,2.07507586]
[1641224404070,1.65532655,3804.8,3804.3,3.07507586]
[1641224404270,1.65532655,3804.8,3804.3,2.69607586]
[1641224404471,1.65532655,3804.8,3804.6,0.65820685]
[1641224405270,2.31239655,3804.8,3804.6,0.65820685]
[1641224410188,2.31239655,3804.8,3804.6,0.00113685]
[1641224410386,2.56379655,3804.8,3804.6,0.00113685]
[1641224410589,2.56379655,3804.8,3804.5,0.00170527]
[1641224410792,0.65711,3804.7,3804.5,0.00170527]
[1641224411689,1.3142172,3804.7,3804.5,0.65878527]
[1641224411988,0.65711,3804.7,3804.5,0.65878527]
[1641224412190,0.65711,3804.7,3804.6,0.00113685]
[1641224412791,2.56379655,3804.8,3804.6,0.00113685]
[1641224412991,2.31239655,3804.8,3804.6,0.00113685]
[1641224413394,0.95707,3804.8,3804.6,0.00113685]
[1641224416139,1.27685323,3804.7,3804.6,0.00113685]
[1641224416738,1.27685323,3804.7,3804.2,0.00341054]
[1641224416939,0.65715,3804.5,3804.2,0.00341054]
[1641224417780,1.314293,3804.5,3804.2,0.00341054]
[1641224417981,2.434743,3804.5,3804.2,0.00341054]
[1641224418180,1.7776,3804.5,3803.9,0.00511581]
[1641224418381,0.65726,3804.2,3803.9,0.00511581]
[1641224418583,0.95726,3804.2,3803.8,0.00568424]
[1641224418785,0.657257,3804.1,3803.8,0.00568424]
[1641224419785,0.657257,3804.1,3803.5,0.00738951]
[1641224419987,0.3,3804.1,3803.5,1.70346537]
[1641224420186,0.3,3804.1,3803.5,2.70346537]
[1641224420386,1.31448,3803.9,3803.6,0.00682108]
[1641224420586,1.31448,3803.9,3803.6,1.00682108]
[1641224420887,1.31448,3803.9,3803.7,0.00625266]
[1641224421330,1.97174,3803.9,3803.7,0.00625266]
[1641224421529,1.97174,3803.9,3803.6,0.00682108]
[1641224421729,1.31453,3803.8,3803.6,0.00682108]
[1641224421932,1.61453,3803.8,3803.5,0.00738951]
[1641224422130,1.91453,3803.8,3803.5,0.00738951]
[1641224422330,0.65731,3803.7,3803.5,0.00738951]
[1641224423736,0.6573966,3803.5,3803.1,0.0096632]
[1641224423933,1.12757653,3803.2,3803.1,0.0096632]
[1641224424134,0.6574,3803.3,3803.1,0.0096632]
[1641224424334,0.6574,3803.4,3803.1,0.0096632]
[1641224424534,2.27050587,3803.6,3803.1,0.0096632]
[1641224424979,4.00043,3804.1,3803.2,1.69607586]
[1641224425180,0.3,3804.0,3803.2,1.69607586]
[1641224425481,0.65724,3803.8,3803.3,0.00852635]
[1641224426082,3.91309042,3804.0,3803.3,0.00852635]
[1641224426286,0.65725,3803.7,3803.4,0.65726]
[1641224426482,2.92765776,3803.7,3803.4,0.65726]
[1641224426684,3.58491776,3803.7,3803.5,0.00738951]
[1641224427285,2.27040776,3803.6,3803.5,0.00738951]
[1641224428748,2.27040776,3803.6,3803.3,0.00852635]
[1641224429749,2.22040776,3803.6,3803.3,1.70460221]
[1641224430249,2.22040776,3803.6,3803.4,0.00795793]
[1641224430850,2.52040776,3803.6,3803.3,0.00852635]
[1641224431051,3.17769776,3803.6,3803.3,0.00852635]
[1641224431249,1.31459,3803.5,3803.3,0.00852635]
[1641224432051,1.31459,3803.5,3803.4,0.00443391]
[1641224432473,1.31459,3803.5,3803.4,0.01239184]
[1641224438131,0.65729,3803.6,3803.4,1.32677184]
[1641224438532,0.65729,3803.6,3803.5,0.00738951]
[1641224439979,0.95729,3803.6,3803.5,0.00738951]
[1641224441582,0.95539868,3803.6,3803.5,0.00738951]
[1641224450596,0.95539868,3803.6,3803.5,0.69142203]
[1641224451441,0.65539868,3803.6,3803.5,0.69142203]
[1641224451640,0.65539868,3803.6,3803.5,1.69142203]
[1641224451840,0.95539868,3803.6,3803.5,1.69142203]
[1641224452643,0.95539868,3803.6,3803.5,3.38749789]
[1641224454047,0.65539868,3803.6,3803.5,3.38749789]
[1641224455283,0.65539868,3803.6,3803.5,2.38749789]
[1641224457585,1.31451,3803.7,3803.5,2.38749789]
[1641224457987,2.26763101,3803.6,3803.5,0.68403252]
[1641224458288,2.26763101,3803.6,3803.5,0.69142203]
[1641224459052,1.31451,3803.7,3803.5,0.69142203]
[1641224459451,1.31451,3803.7,3803.6,0.00682108]
[1641224459652,0.65726,3803.7,3803.6,0.00682108]
[1641224459851,0.65726,3803.7,3803.6,0.6908536]
[1641224460653,2.9254008,3803.7,3803.6,0.6908536]
[1641224463090,1.97166,3803.8,3803.6,0.6908536]
[1641224463296,1.97166,3803.8,3803.6,1.3480436]
[1641224463493,1.97166,3803.8,3803.7,0.00625266]
[1641224464492,1.97166,3803.8,3803.7,0.69028518]
[1641224468253,0.06647321,3804.0,3803.7,3.41279804]
[1641224468452,0.06647321,3804.0,3803.8,0.65712]
[1641224468654,0.06647321,3804.0,3803.8,1.66280424]
[1641224468857,0.06647321,3804.0,3803.9,8.95511581]
[1641224469054,0.06647321,3804.0,3803.9,9.95511581]
[1641224469255,2.81481231,3804.6,3803.9,9.95511581]
[1641224469456,3.47188231,3804.6,3804.2,0.65708]
[1641224469755,0.06647251,3804.4,3804.2,0.65708]
[1641224469991,0.06647251,3804.4,3804.3,2.45284212]
[1641224470493,0.06647251,3804.4,3804.3,3.13687464]
[1641224470692,0.06647251,3804.4,3804.3,0.68687464]
[1641224471291,1.31418,3804.5,3804.3,0.68687464]
[1641224471692,1.31418,3804.5,3804.4,0.0022737]
[1641224471893,0.6571,3804.5,3804.4,0.0022737]
[1641224472092,1.3143168,3804.5,3804.4,0.0022737]
[1641224472492,1.3143168,3804.5,3804.2,0.00341054]
[1641224472693,1.31436,3804.5,3804.2,0.00341054]
[1641224473095,1.31436,3804.5,3803.7,0.00625266]
[1641224473096,1.3145,3804.3,3803.7,0.00625266]
[1641224473393,0.65725,3804.1,3803.7,0.00625266]
[1641224474544,0.65725,3804.1,3803.7,0.01068648]
[1641224474940,0.65725,3804.1,3803.8,0.00568424]
[1641224475343,1.3145,3803.9,3803.8,0.00568424]
[1641224476543,1.6145,3803.9,3803.8,0.00568424]
[1641224477395,1.3145,3803.9,3803.8,0.00568424]
[1641224477599,1.6145,3803.9,3803.8,0.00568424]
[1641224478900,1.3145,3803.9,3803.8,0.00568424]
[1641224480302,1.3045,3803.9,3803.8,0.00568424]
[1641224480501,3.5720425,3803.9,3803.8,0.00568424]
[1641224481750,3.8720425,3803.9,3803.8,0.00568424]
[1641224482753,4.1990425,3803.9,3803.8,0.00568424]
[1641224483151,6.7490425,3803.9,3803.8,0.00568424]
[1641224483352,1.3148291,3803.7,3803.3,1.67687392]
[1641224483559,0.65741,3803.5,3803.1,1.67687392]
[1641224483752,0.65741,3803.5,3803.4,0.00227369]
[1641224484753,0.65741,3803.5,3802.8,0.65737]
[1641224484987,0.65737,3803.2,3802.9,0.00511581]
[1641224485589,0.65737,3803.2,3802.6,0.00682108]
[1641224485888,0.65736,3803.0,3802.7,0.65739]
[1641224486093,0.65739,3803.0,3802.7,0.65739]
[1641224486291,0.65739,3803.0,3802.8,0.00568423]
[1641224487391,0.65741,3802.9,3802.8,0.00568423]
[1641224489040,0.65733,3803.1,3803.0,0.65733]
[1641224489239,1.31469,3803.4,3803.0,0.65733]
[1641224489440,1.31469,3803.4,3803.0,0.66187739]
[1641224489642,1.31469,3803.4,3803.1,0.00397896]
[1641224490041,1.31469,3803.4,3802.9,0.00511581]
[1641224490241,0.65734,3803.2,3802.9,0.00511581]
[1641224490642,0.65734,3803.2,3803.1,0.65732]
[1641224491045,0.65734,3803.2,3803.1,0.66129896]
[1641224492684,0.65734,3803.2,3803.1,0.00397896]
[1641224493486,0.65734,3803.2,3803.0,0.00454739]
[1641224493690,0.65734,3803.2,3803.0,1.75065837]
[1641224494090,0.65734,3803.2,3803.1,0.00397896]
[1641224496250,0.65734,3803.2,3803.1,1.75008994]
[1641224496656,0.95734,3803.2,3803.1,1.75008994]
[1641224497252,0.95734,3803.2,3803.1,0.00397896]
[1641224498152,0.95734,3803.2,3803.0,0.00454739]
[1641224499156,0.95734,3803.2,3803.0,1.75065837]
[1641224499556,0.95734,3803.2,3803.1,0.00397896]
[1641224500794,3.31068177,3803.2,3803.1,0.00397896]
[1641224501697,3.01068177,3803.2,3803.1,0.00397896]
[1641224501897,3.01068177,3803.2,3803.1,1.75008994]
[1641224501898,0.65734,3803.2,3803.1,1.75008994]
[1641224502106,0.65734,3803.2,3803.1,2.75008994]
[1641224502497,0.65734,3803.2,3803.1,5.00323348]
[1641224502798,0.65734,3803.2,3803.1,2.75008994]
[1641224503198,0.65734,3803.2,3803.1,1.00397896]
[1641224503675,0.65734,3803.2,3803.1,0.00397896]
[1641224503865,0.65734,3803.2,3803.1,1.75010382]
[1641224504166,0.65734,3803.2,3803.1,2.75010382]
[1641224504563,0.65734,3803.2,3803.1,1.00397896]
[1641224505163,0.65734,3803.2,3803.1,0.00397896]
[1641224505764,0.65734,3803.2,3803.1,0.60809359]
[1641224507169,0.65734,3803.2,3803.1,2.35421845]
[1641224509600,0.65734,3803.2,3803.1,19.02421845]
[1641224509800,1.3144,3803.5,3803.2,0.65718]
[1641224510002,0.0664739,3803.6,3803.2,0.65718]
[1641224510003,0.0664739,3803.6,3803.2,1.7961948]
[1641224510200,0.0664739,3803.6,3803.3,15.37284211]
[1641224510402,0.0664739,3803.6,3803.4,1.74403866]
[1641224510600,0.0664739,3803.6,3803.4,3.04403866]
[1641224510799,0.0664739,3803.6,3803.5,25.65499611]
[1641224511240,0.65712,3803.7,3803.5,11.28499611]
[1641224511446,0.65712,3803.7,3803.5,26.65499611]
[1641224511644,0.65712,3803.7,3803.6,16.37113684]
[1641224512048,0.65712,3803.7,3803.6,16.67113684]
[1641224512249,0.65712,3803.7,3803.6,17.27525147]
[1641224514992,0.06761006,3804.0,3803.7,17.4068782]
[1641224515191,0.06761006,3804.0,3803.9,15.37]
[1641224515690,0.06761006,3804.0,3803.9,16.37]
[1641224515891,0.06761006,3804.0,3803.9,16.97411463]
[1641224516492,0.06761006,3804.0,3803.9,17.63115463]
[1641224517298,0.00113685,3804.0,3803.9,17.63115463]
[1641224517697,0.00113685,3804.0,3803.9,17.63469014]
[1641224520449,0.00113685,3804.0,3803.9,2.26469014]
[1641224521053,0.00113685,3804.0,3803.9,1.60765014]
[1641224521454,0.00113685,3804.0,3803.9,0.60765014]
[1641224521652,0.00113685,3804.0,3803.9,1.60765014]
[1641224521852,0.00113685,3804.0,3803.9,0.60765014]
[1641224522054,0.00113685,3804.0,3803.9,1.60765014]
[1641224522513,0.00113685,3804.0,3803.9,0.60765014]
[1641224522717,0.00113685,3804.0,3803.9,4.00765014]
[1641224522913,0.00113685,3804.0,3803.9,1.60765014]
[1641224523115,0.00113685,3804.0,3803.9,0.60765014]
[1641224523314,0.00113685,3804.0,3803.9,1.60765014]
[1641224524018,0.00113685,3804.0,3803.9,0.60765014]
[1641224524216,0.00113685,3804.0,3803.9,1.60765014]
[1641224524418,0.00113685,3804.0,3803.9,0.60765014]
[1641224524617,0.00113685,3804.0,3803.9,1.60765014]
[1641224524819,0.00113685,3804.0,3803.9,3.35765014]
[1641224525017,0.00113685,3804.0,3803.9,4.35765014]
[1641224525219,0.00113685,3804.0,3803.9,4.65765014]
[1641224526251,0.00113685,3804.0,3803.9,22.26378334]
[1641224526450,0.00113685,3804.0,3803.9,23.29981334]
[1641224526651,0.00113685,3804.0,3803.9,23.98791334]
[1641224527656,7.251e-05,3804.4,3804.2,0.6569]
[1641224527856,7.251e-05,3804.4,3804.3,3.22231534]
[1641224528058,7.251e-05,3804.4,3804.3,20.86288534]
[1641224528256,6.21,3805.8,3804.4,15.37]
[1641224528456,6.21,3805.8,3804.5,3.14056039]
[1641224528657,0.65686,3805.4,3804.6,15.37]
[1641224528858,0.65686,3805.4,3804.8,16.6982892]
[1641224529059,0.0073895,3805.3,3805.0,1.31368]
[1641224529259,0.6642195,3805.3,3805.0,17.36268]
[1641224529460,0.00682108,3805.2,3805.0,17.5224659]
[1641224529660,0.00682108,3805.2,3805.1,27.53554268]
[1641224529896,0.65683,3805.3,3805.1,1.3]
[1641224530102,0.65683,3805.3,3805.1,0.90411463]
[1641224530296,0.65683,3805.3,3805.1,1.90411463]
[1641224530499,0.65683,3805.3,3805.2,0.60411463]
[1641224530798,0.6642195,3805.3,3805.2,0.60411463]
[1641224531796,0.6642195,3805.3,3805.2,1.60411463]
[1641224532195,0.6642195,3805.3,3805.1,1.61368]
[1641224532196,0.6642195,3805.3,3805.1,2.61368]
[1641224532600,0.00682108,3805.2,3805.1,2.61368]
[1641224532798,0.00682108,3805.2,3805.1,4.88333176]
[1641224532997,0.00682108,3805.2,3805.1,2.61368]
[1641224533653,0.00682108,3805.2,3805.1,1.31368]
[1641224533856,0.00682108,3805.2,3805.0,1.31368]
[1641224534059,0.00682108,3805.2,3804.8,0.72349029]
[1641224534357,0.65705,3805.0,3804.8,0.06647029]
[1641224534759,0.00511581,3804.9,3804.8,0.06647029]
[1641224535360,0.65698,3804.8,3804.6,1.08687613]
[1641224535758,0.00397896,3804.7,3804.6,2.04386613]
[1641224536159,0.00397896,3804.7,3804.6,3.04386613]
[1641224536364,0.00397896,3804.7,3804.6,1.95699]
[1641224536561,0.00397896,3804.7,3804.6,0.95699]
[1641224536863,0.00397896,3804.7,3804.6,1.95699]
[1641224538703,0.00397896,3804.7,3804.6,1.96052486]
[1641224539703,0.00397896,3804.7,3804.6,5.11052486]
[1641224540309,0.00397896,3804.7,3804.6,20.48052486]
[1641224544754,0.00397896,3804.7,3804.6,20.85952486]
[1641224545000,0.72280844,3805.3,3805.0,15.37]
[1641224545406,0.00284212,3805.2,3805.1,1.0]
[1641224545602,0.00284212,3805.2,3805.1,4.2]
[1641224545801,0.00284212,3805.2,3805.1,19.57]
[1641224546604,0.00284212,3805.2,3805.1,20.22682]
[1641224547005,0.00284212,3805.2,3805.1,1.95682]
[1641224547406,0.00284212,3805.2,3805.1,17.32682]
[1641224548205,0.00284212,3805.2,3805.1,18.09270391]
[1641224549458,0.00284212,3805.2,3805.1,2.72270391]
[1641224553002,0.00284212,3805.2,3805.1,18.09270391]
[1641224553407,0.00284212,3805.2,3805.1,2.72270391]
[1641224554609,0.00284212,3805.2,3805.1,20.36490277]
[1641224554805,0.00284212,3805.2,3805.1,18.09270391]
[1641224556558,0.00284212,3805.2,3805.1,2.72270391]
[1641224556954,0.00284212,3805.2,3805.1,20.38259068]
[1641224557556,0.00284212,3805.2,3805.1,18.09270391]
[1641224557957,0.00284212,3805.2,3805.1,18.47170391]
[1641224562504,0.00284212,3805.2,3805.1,3.10170391]
[1641224563772,0.00284212,3805.2,3805.1,5.34280471]
[1641224563972,0.00284212,3805.2,3805.1,20.75520799]
[1641224564175,0.00284212,3805.2,3805.1,18.47170391]
[1641224564576,0.00284212,3805.2,3805.1,18.47523831]
[1641224566877,0.00284212,3805.2,3805.1,3.10523831]
[1641224568600,0.00284212,3805.2,3805.1,4.84305804]
[1641224573544,0.00284212,3805.2,3805.1,20.21305804]
[1641224574151,0.00284212,3805.2,3805.1,18.47523831]
[1641224574651,0.00284212,3805.2,3805.1,3.10523831]
[1641224575100,0.00284212,3805.2,3805.1,2.72623831]
[1641224575300,0.65681,3805.4,3805.1,2.72623831]